bitfinex-derivatives/quotes_ETHF0:USTF0_20250530
["timestamp","ask_amount","ask_price","bid_price","bid_amount"]
[1748641594402,7.12498857,2572.3,2572.2,0.00583703]
[1748641595103,2.12498857,2572.3,2572.2,0.78321703]
[1748641595397,0.06993857,2572.3,2572.2,0.00583703]
[1748641595606,0.06993857,2572.3,2572.2,0.78321703]
[1748641595998,0.06993857,2572.3,2572.2,3.99101703]
[1748641596197,0.06993857,2572.3,2572.2,8.99101703]
[1748641596392,0.06993857,2572.3,2572.2,3.99101703]
[1748641596597,2.07088,2572.9,2572.8,0.7772]
[1748641597104,3.98496,2573.0,2572.9,0.77717]
[1748641597902,0.77723,2572.7,2572.6,4.888]
[1748641604010,0.77735,2572.3,2572.2,7.92063703]
[1748641604311,0.77747,2571.9,2571.8,4.707]
[1748641604504,0.77759,2571.5,2571.4,0.7776]
[1748641604705,0.77759,2571.5,2571.4,4.707]
[1748641607210,5.0,2571.5,2571.2,0.00583703]
[1748641607507,0.77765,2571.3,2571.2,0.00583703]
[1748641607912,2.08635,2571.3,2571.2,0.00583703]
[1748641612818,2.08635,2571.3,2571.2,0.78351703]
[1748641613018,0.77765,2571.3,2571.2,0.78351703]
[1748641613719,3.98544,2571.4,2571.3,0.77765]
[1748641613911,3.98544,2571.4,2571.3,2.02105]
[1748641615722,0.06993857,2571.5,2571.4,0.77762]
[1748641615723,0.84754857,2571.5,2571.4,0.77762]
[1748641617622,0.06993857,2571.5,2571.4,0.77762]
[1748641617819,3.21363703,2571.7,2571.6,0.77756]
[1748641618024,0.00583703,2571.7,2571.6,5.48656]
[1748641618725,0.00583703,2571.7,2571.6,10.48656]
[1748641619425,0.00583703,2571.7,2571.6,5.48656]
[1748641620920,3.2078,2572.0,2571.6,5.48656]
[1748641620921,0.7774,2572.2,2571.8,1.94374]
[1748641621126,0.7774,2572.2,2572.1,0.77737]
[1748641624628,0.7774,2572.2,2572.1,5.48537]
[1748641624834,0.84733857,2572.2,2572.1,5.48537]
[1748641625738,0.06993857,2572.2,2572.1,5.48537]
[1748641626437,0.84731857,2572.2,2572.1,5.48537]
[1748641629539,0.06993857,2572.2,2572.1,5.48537]
[1748641639746,3.2078,2573.1,2572.2,1.94346]
[1748641639947,0.7771,2573.2,2573.1,0.77708]
[1748641640241,3.2078,2573.2,2573.0,4.529]
[1748641640442,2.67751,2573.1,2573.0,5.30614]
[1748641641142,0.77714,2573.0,2572.9,0.00583703]
[1748641641348,2.05914,2573.0,2572.9,4.53483703]
[1748641642453,2.05914,2573.0,2572.9,0.00583703]
[1748641648952,2.05914,2573.0,2572.9,0.78300703]
[1748641649453,0.77729,2572.6,2572.0,39.192]
[1748641649750,0.77738,2572.3,2572.2,0.77736]
[1748641650555,2.01228,2572.3,2572.2,0.77736]
[1748641652858,1.2349,2572.3,2572.2,0.77736]
[1748641653259,0.6241,2572.4,2572.3,0.77735]
[1748641653658,1.40142,2572.4,2572.3,0.77735]
[1748641653860,1.9754,2572.4,2572.3,0.77735]
[1748641654061,1.45263703,2572.5,2572.4,0.77732]
[1748641654251,2.80393703,2572.5,2572.4,0.77732]
[1748641656159,2.80392703,2572.5,2572.4,0.77732]
[1748641656663,0.78312703,2572.5,2572.4,0.77732]
[1748641658460,2.11582703,2572.5,2572.4,0.77732]
[1748641658662,2.11582703,2572.5,2572.4,5.30532]
[1748641659462,1.33853703,2572.5,2572.4,5.30532]
[1748641659864,0.00583703,2572.5,2572.4,5.30532]
[1748641663672,2.10988,2572.9,2572.8,0.7772]
[1748641663872,5.31768,2572.9,2572.8,0.7772]
[1748641664074,5.31768,2572.9,2572.8,5.1932]
[1748641664265,0.6695,2573.1,2573.0,0.77714]
[1748641665171,3.98489,2573.2,2573.1,0.77711]
[1748641665870,3.2078,2573.2,2573.1,0.77711]
[1748641666673,0.77706,2573.3,2573.2,0.77708]
[1748641666973,0.77706,2573.3,2573.2,5.19308]
[1748641667171,0.77702,2573.5,2573.4,0.77699]
[1748641667373,2.06622,2573.5,2573.4,0.77699]
[1748641668964,0.77704,2573.4,2573.3,0.77702]
[1748641673175,0.77704,2573.4,2573.3,2.04942]
[1748641674478,0.77701,2573.5,2573.4,0.77699]
[1748641675977,0.77702,2573.4,2573.3,2.04943]
[1748641679777,0.77702,2573.4,2573.3,0.77703]
[1748641684078,0.77702,2573.4,2573.2,4.416]
[1748641684079,5.1109,2573.6,2572.8,7.1521]
[1748641684279,0.77717,2572.9,2572.8,4.5636]
[1748641684478,0.77717,2572.9,2572.8,9.0962]
[1748641684782,8.98497,2572.9,2572.8,3.904]
[1748641685577,0.77729,2572.5,2572.4,4.415]
[1748641686178,0.77729,2572.5,2572.4,5.19232]
[1748641688580,1.2249,2572.5,2572.4,5.19232]
[1748641688885,1.45396,2572.6,2572.5,0.77729]
[1748641689084,2.75656,2572.6,2572.5,0.77729]
[1748641691183,2.95066,2572.6,2572.5,0.77729]
[1748641691380,0.1941,2572.6,2572.5,0.77729]
[1748641691579,0.1941,2572.6,2572.5,2.66369]
[1748641691886,0.1941,2572.6,2572.5,3.27849]
[1748641693384,3.2078,2573.2,2572.6,0.77726]
[1748641693689,0.77724,2572.8,2572.7,0.7772]
[1748641693885,0.77724,2572.8,2572.7,5.0872]
[1748641694489,0.77724,2572.8,2572.7,4.31]
[1748641694892,0.77724,2572.8,2572.7,5.08723]
[1748641695285,0.77724,2572.8,2571.7,18.661]
[1748641695286,3.2078,2572.6,2570.6,3.2078]
[1748641695486,0.77774,2571.0,2570.3,10.94219613]
[1748641696096,0.77791,2570.5,2570.3,3.2078]
[1748641696400,0.00583703,2570.7,2570.3,3.98575]
[1748641696600,0.77791,2570.5,2570.3,3.98575]
[1748641697004,0.77793,2570.4,2570.3,3.2078]
[1748641697300,0.77792,2570.5,2570.3,3.2078]
[1748641697493,1.27163703,2570.7,2570.3,3.2078]
[1748641697700,0.77791,2570.5,2570.3,3.98574]
[1748641698800,0.77791,2570.5,2570.1,0.00583703]
[1748641698801,5.0,2570.5,2570.1,0.00583703]
[1748641699002,3.2078,2569.4,2568.2,5.34611173]
[1748641699199,3.2078,2568.3,2568.2,7.73813941]
[1748641699601,3.98636,2568.3,2568.2,7.73813941]
[1748641699799,3.2078,2568.3,2568.2,7.73813941]
[1748641700302,3.2078,2568.3,2568.2,2.39202768]
[1748641700502,3.2078,2568.3,2568.2,3.67622768]
[1748641700705,3.2078,2568.3,2568.2,2.39202768]
[1748641701103,3.2078,2568.3,2568.2,3.17061768]
[1748641701608,3.2078,2568.3,2568.2,2.39202768]
[1748641702001,3.2078,2568.3,2568.2,3.17061768]
[1748641703095,3.2078,2568.3,2568.2,7.77161768]
[1748641703605,2.7078,2568.3,2568.2,7.77161768]
[1748641703911,3.2078,2569.3,2568.4,1.94626]
[1748641704098,3.2078,2569.6,2569.5,0.77818]
[1748641704407,0.655,2570.2,2570.1,0.77802]
[1748641704602,3.8628,2570.2,2570.0,0.77803]
[1748641704906,3.8628,2570.2,2569.8,4.60683703]
[1748641705106,4.64079,2570.2,2570.0,0.77804]
[1748641705307,1.94603,2568.9,2567.5,1.94699]
[1748641705604,3.2078,2567.9,2567.8,0.77871]
[1748641706001,3.2078,2567.9,2567.8,0.78455721]
[1748641708503,32.9918,2567.9,2565.4,5.34611173]
[1748641708703,32.9918,2567.9,2560.4,64.262]
[1748641708704,3.2078,2565.5,2563.6,9.18571498]
[1748641708899,0.77981,2564.2,2564.1,1.103857]
[1748641709100,3.2078,2564.2,2563.6,9.18571498]
[1748641709307,3.2078,2563.7,2563.6,22.27205987]
[1748641709508,3.2078,2564.6,2563.6,27.61505987]
[1748641709807,43.12391,2567.0,2563.6,27.61505987]
[1748641709808,3.2078,2566.5,2564.8,3.2078]
[1748641710108,3.2078,2566.5,2566.0,0.77926]
[1748641710298,3.2078,2566.2,2565.6,3.2078]
[1748641710606,3.2078,2565.7,2565.6,0.00584898]
[1748641710907,0.78506898,2566.2,2565.6,0.00584898]
[1748641710908,0.00584898,2566.2,2565.6,0.00584898]
[1748641711503,3.98707,2566.0,2565.6,0.00584898]
[1748641711802,3.2078,2565.7,2565.6,0.00584898]
[1748641712008,1.234,2565.9,2565.6,0.00584898]
[1748641712210,3.2078,2565.8,2565.6,0.00584898]
[1748641712407,1.234,2565.7,2564.9,5.603]
[1748641712608,1.234,2565.7,2565.1,3.2078]
[1748641713405,1.234,2565.7,2565.1,3.21364898]
[1748641713601,4.4418,2565.7,2565.1,16.29999387]
[1748641713907,3.21364898,2566.2,2565.5,3.2078]
[1748641714110,3.21364898,2566.2,2565.8,0.7793]
[1748641714405,0.00584898,2566.2,2565.9,9.59009]
[1748641714708,0.00584898,2566.2,2566.0,5.605]
[1748641714908,3.98673,2567.1,2566.0,5.605]
[1748641715108,3.98673,2567.1,2566.2,0.77917]
[1748641715310,3.2078,2567.1,2566.5,3.2078]
[1748641715609,3.2078,2567.1,2566.8,0.77899]
[1748641715809,1.3434,2567.4,2566.9,3.2078]
[1748641716004,1.34924898,2567.4,2567.0,0.77894]
[1748641716209,1.34924898,2567.4,2567.1,5.605]
[1748641716611,1.34924898,2567.4,2567.1,18.69134489]
[1748641716913,1.34924898,2567.4,2567.1,19.47026489]
[1748641717104,1.34924898,2567.4,2567.2,0.77888]
[1748641717307,0.00584898,2567.4,2567.2,0.77888]
[1748641718911,0.00584898,2567.4,2567.3,0.77886]
[1748641719316,3.98636,2568.4,2567.8,0.77868]
[1748641719608,4.4831,2568.4,2567.9,3.2078]
[1748641719815,3.2078,2568.7,2568.6,0.77846]
[1748641720009,1.2753,2569.3,2569.1,0.77831]
[1748641720310,1.2753,2569.3,2569.0,0.77833]
[1748641720514,0.77835,2569.0,2568.9,0.00583748]
[1748641720811,0.77849,2568.6,2568.2,3.98638]
[1748641721014,3.2078,2568.9,2568.2,3.2078]
[1748641721210,0.77851,2568.5,2568.2,3.2078]
[1748641721518,1.2753,2568.4,2568.2,17.07273489]
[1748641722009,29.8678,2568.3,2565.6,1.94842]
[1748641722217,0.77926,2566.1,2565.2,3.2078]
[1748641722507,0.77942,2565.5,2565.2,1.93427]
[1748641722712,0.7794,2565.6,2565.2,1.93427]
[1748641722912,0.77943,2565.5,2565.2,1.93427]
[1748641723104,0.00583748,2565.6,2565.2,1.93427]
[1748641723311,0.77944,2565.4,2565.2,1.93427]
[1748641723616,0.77942,2565.5,2565.2,1.93427]
[1748641723812,0.77942,2565.5,2565.2,2.71377]
[1748641724009,1.31553748,2565.6,2565.2,1.93427]
[1748641724211,0.77943,2565.5,2565.2,1.93427]
[1748641724415,0.77947,2565.3,2565.2,1.93427]
[1748641724717,0.00583748,2565.6,2565.2,7.90227]
[1748641724917,0.77944,2565.5,2565.2,7.90227]
[1748641725219,0.97423,2565.5,2565.2,7.90227]
[1748641725519,0.77945,2565.4,2565.2,7.90227]
[1748641726620,0.1948,2565.5,2565.2,7.90227]
[1748641726918,0.97423,2565.5,2565.2,8.68177]
[1748641727112,1.46833,2566.2,2565.6,0.06993857]
[1748641727313,0.77927,2566.0,2565.7,3.2078]
[1748641727510,0.77924,2566.1,2565.8,6.7483]
[1748641727711,1.47416748,2566.2,2565.8,7.2594]
[1748641727908,0.77923,2566.1,2565.8,8.03871]
[1748641728622,0.77923,2566.1,2565.9,0.77929]
[1748641728819,1.47416748,2566.2,2565.8,7.2594]
[1748641728820,2.3072465,2567.3,2566.0,5.4571]
[1748641729020,2.3072465,2567.3,2567.2,3.79199]
[1748641729316,2.3072465,2567.3,2567.2,9.76099]
[1748641729525,2.06929,2567.6,2567.4,0.77883]
[1748641729720,2.3072465,2568.2,2567.8,0.77869]
[1748641729918,1.2905,2568.1,2568.0,0.77865]
[1748641730118,2.31308398,2568.2,2568.1,0.77862]
[1748641730420,3.07632867,2568.7,2568.0,48.4548]
[1748641730615,0.00583748,2568.7,2568.2,3.2078]
[1748641730816,1.4851,2568.6,2568.2,9.1768]
[1748641731023,0.77856,2568.3,2568.2,9.1768]
[1748641731221,0.77854,2568.4,2568.2,9.1768]
[1748641731522,0.77851,2568.5,2568.2,9.95537]
[1748641731715,0.77853,2568.5,2568.2,9.95538]
[1748641731917,1.2746,2568.4,2568.2,9.95539]
[1748641732112,2.05314,2568.4,2568.2,9.1768]
[1748641732314,0.1946,2568.6,2568.2,14.1768]
[1748641732520,0.1946,2568.6,2568.5,3.9863]
[1748641732723,0.77833,2569.1,2568.5,3.2078]
[1748641732927,0.77833,2569.1,2568.9,0.77837]
[1748641733223,0.77833,2569.1,2569.0,5.968]
[1748641733424,0.77831,2569.2,2569.0,5.968]
[1748641733720,1.2746,2569.3,2569.0,6.74632]
[1748641733721,1.28043748,2569.3,2569.0,6.74632]
[1748641733921,0.00583748,2569.3,2569.0,5.968]
[1748641734122,0.77831,2569.2,2569.0,5.968]
[1748641734319,0.00583748,2569.3,2569.2,0.77829]
[1748641735027,0.00583748,2569.3,2569.0,5.97383748]
[1748641735215,0.78410748,2569.3,2569.1,0.77831]
[1748641735411,0.00583748,2569.3,2569.2,0.77829]
[1748641735617,0.00583748,2569.3,2569.0,5.97383748]
[1748641735817,0.00583748,2569.3,2569.2,0.77829]
[1748641736117,0.00583748,2569.3,2569.0,5.97383748]
[1748641736118,0.77829,2569.2,2569.1,3.20196252]
[1748641736419,0.77829,2569.2,2567.2,1.94724]
[1748641736420,0.77867,2568.0,2567.2,1.94724]
[1748641736724,3.2078,2567.9,2567.8,0.77871]
[1748641736923,3.2078,2567.9,2567.8,5.966]
[1748641737223,0.00583748,2568.1,2567.8,10.966]
[1748641737523,0.00583748,2568.1,2568.0,0.77865]
[1748641737821,3.2078,2569.7,2567.9,1.94665]
[1748641738025,0.7784,2568.9,2568.6,3.2078]
[1748641738226,0.7784,2568.9,2568.7,6.74442]
[1748641738421,3.2078,2569.1,2568.2,3.2078]
[1748641738622,0.77862,2568.1,2568.0,5.966]
[1748641739017,1.3168,2568.5,2568.0,5.966]
[1748641739224,0.77862,2568.1,2568.0,5.966]
[1748641739527,0.77862,2568.1,2568.0,6.74465]
[1748641739726,0.77861,2568.2,2568.1,0.77862]
[1748641740024,0.77862,2568.1,2568.0,6.74463]
[1748641740221,0.77862,2568.1,2568.0,5.966]
[1748641741322,0.77868,2567.9,2567.8,0.00583748]
[1748641742126,2.01368,2567.9,2567.8,0.00583748]
[1748641742326,0.77867,2568.0,2567.8,0.00583748]
[1748641742523,0.77862,2568.1,2567.8,1.33833748]
[1748641742824,0.77862,2568.1,2568.0,0.77865]
[1748641743025,0.77862,2568.1,2567.8,1.33833748]
[1748641743528,3.2078,2569.0,2568.1,1.94656]
[1748641743722,3.2078,2569.0,2568.5,1.94626]
[1748641743923,0.77841,2568.8,2568.7,0.77843]
[1748641744124,0.7785,2568.5,2568.4,3.2078]
[1748641744427,0.77853,2568.4,2568.3,6.74355]
[1748641745026,0.77853,2568.4,2568.3,9.95135]
[1748641745327,0.77839,2568.9,2568.8,0.7784]
[1748641745519,3.2078,2569.1,2568.8,5.965]
[1748641745829,3.2078,2569.7,2569.0,1.94588]
[1748641746127,0.77821,2569.5,2569.4,0.7782]
[1748641746327,0.77821,2569.5,2569.4,5.965]
[1748641746519,0.77819,2569.6,2569.4,5.965]
[1748641746822,0.77819,2569.6,2569.5,0.7782]
[1748641747520,3.2078,2569.7,2569.6,0.77817]
[1748641748027,0.77817,2569.6,2569.5,0.77818]
[1748641748424,1.3322,2570.0,2569.4,5.965]
[1748641748627,0.77817,2569.6,2569.5,0.77818]
[1748641749225,0.77809,2569.9,2569.8,0.7781]
[1748641749627,1.94504,2570.2,2569.4,3.2078]
[1748641749828,0.77817,2569.6,2569.5,5.964]
[1748641751029,0.77817,2569.6,2569.5,6.7422]
[1748641751225,5.15285,2570.1,2569.5,6.7422]
[1748641751429,1.94495,2570.3,2569.5,5.964]
[1748641751633,0.7781,2569.9,2569.8,0.7781]
[1748641752030,0.77807,2570.0,2569.9,0.77806]
[1748641753233,3.2078,2570.4,2569.9,3.2078]
[1748641753430,0.77797,2570.3,2570.2,0.77796]
[1748641753635,0.77797,2570.3,2570.2,6.69696]
[1748641753932,3.98575,2570.4,2570.3,0.77796]
[1748641754234,0.77791,2570.5,2570.4,0.77789]
[1748641754636,2.06708,2570.6,2570.5,0.77789]
[1748641754827,2.06708,2570.6,2570.2,5.919]
[1748641754828,0.77791,2570.5,2570.4,0.7779]
[1748641755029,3.2078,2570.7,2570.2,7.86395]
[1748641755431,0.77785,2570.7,2570.6,0.77786]
[1748641755929,0.77782,2570.8,2570.7,0.77781]
[1748641756228,0.77782,2570.8,2570.7,6.69681]
[1748641756429,0.7778,2570.9,2570.8,0.77779]
[1748641756630,1.2892,2571.0,2570.7,5.919]
[1748641756631,2.06695,2571.0,2570.9,0.77777]
[1748641756830,2.06695,2571.0,2570.7,5.919]
[1748641756831,0.77778,2570.9,2570.8,0.77778]
[1748641757031,1.2892,2571.0,2570.9,0.77777]
[1748641757233,0.77779,2570.9,2570.8,0.77778]
[1748641757432,1.2892,2571.0,2570.7,5.919]
[1748641757433,2.06697,2571.0,2570.9,0.77777]
[1748641757633,0.77777,2571.0,2570.9,0.77777]
[1748641758136,0.77773,2571.1,2571.0,0.77771]
[1748641759338,0.77768,2571.3,2571.2,0.77767]
[1748641759535,0.77768,2571.3,2571.2,6.69567]
[1748641760439,3.98544,2571.4,2571.3,0.77765]
[1748641761031,3.2078,2571.4,2571.3,0.77765]
[1748641761529,3.98542,2571.4,2571.3,0.77765]
[1748641761732,3.98542,2571.4,2571.2,5.918]
[1748641761930,0.77765,2571.3,2571.2,6.69567]
[1748641762147,3.2078,2571.4,2571.3,0.77765]
[1748641762439,3.2078,2571.4,2571.2,5.918]
[1748641762440,0.77765,2571.3,2571.2,5.918]
[1748641762832,2.08075,2571.3,2571.2,5.918]
[1748641764133,2.08075,2571.3,2571.2,5.916]
[1748641764336,5.28855,2571.3,2571.2,5.916]
[1748641767638,6.5219732,2571.3,2571.2,5.916]
[1748641768339,6.5219732,2571.3,2571.2,6.69368]
[1748641768738,2.08075,2571.3,2571.2,6.69368]
[1748641769227,2.08075,2571.3,2571.2,5.916]
[1748641769427,0.77765,2571.3,2571.2,6.69368]
[1748641769636,0.77765,2571.3,2571.2,5.916]
[1748641769834,0.77765,2571.3,2571.2,6.69368]
[1748641770035,0.77765,2571.3,2571.2,5.916]
[1748641770448,0.77765,2571.3,2571.2,6.69368]
[1748641772040,3.17674,2571.6,2571.2,5.916]
[1748641772246,0.77763,2571.5,2571.4,0.77759]
[1748641772542,2.07903,2571.5,2571.4,0.77759]
[1748641774761,0.77765,2571.4,2571.3,0.77764]
[1748641775439,0.77765,2571.4,2571.3,0.77762]
[1748641775647,0.77765,2571.4,2571.3,2.08232]
[1748641776648,2.01809781,2571.4,2571.3,2.08232]
[1748641779447,1.24044781,2571.4,2571.3,2.08232]
[1748641779750,0.24044781,2571.4,2571.3,2.08232]
[1748641781054,0.77762,2571.5,2571.4,0.77759]
[1748641781252,2.09642,2571.5,2571.4,0.77759]
[1748641785755,0.77762,2571.5,2571.4,0.77759]
[1748641789057,2.10313,2571.7,2571.6,0.77756]
[1748641793156,3.3362185,2571.7,2571.6,0.77756]
[1748641794556,2.29703,2571.7,2571.6,0.77756]
[1748641801262,3.52957267,2571.7,2571.6,0.77756]
[1748641801861,2.29703,2571.7,2571.6,0.77756]
[1748641802765,1.5195,2571.7,2571.6,0.77756]
[1748641802957,2.29703,2571.7,2571.6,0.77756]
[1748641804162,2.36696857,2571.7,2571.6,0.77756]
[1748641805957,0.26383857,2571.7,2571.6,0.77756]
[1748641806170,3.2078,2572.4,2572.3,0.77735]
[1748641806358,3.98512,2572.4,2572.3,5.95335]
[1748641806560,3.2078,2572.4,2572.1,0.78322748]
[1748641806754,0.77738,2572.2,2572.1,5.18183748]
[1748641807263,5.77738,2572.2,2572.1,0.00583748]
[1748641807754,1.94364,2572.0,2571.8,5.176]
[1748641807961,0.77747,2571.9,2571.8,5.176]
[1748641808160,2.00287,2571.9,2571.8,5.176]
[1748641809264,0.77753,2571.7,2571.6,0.00583748]
[1748641809457,0.77753,2571.7,2571.6,5.18183748]
[1748641810264,0.84746857,2571.7,2571.6,0.00583748]
[1748641810563,0.84746857,2571.7,2571.6,5.18183748]
[1748641811962,0.84746857,2571.7,2571.6,0.00583748]
[1748641812169,0.84746857,2571.7,2571.6,5.18183748]
[1748641812959,2.16566857,2571.7,2571.6,5.18183748]
[1748641813155,0.00583748,2572.1,2571.6,10.95939748]
[1748641813467,0.00583748,2572.1,2572.0,0.77744]
[1748641813964,5.00583748,2572.1,2571.6,5.18183748]
[1748641814165,0.77753,2571.7,2571.6,5.18183748]
[1748641814365,0.84746857,2571.7,2571.6,5.18183748]
[1748641817067,0.84746857,2571.7,2571.6,5.95939748]
[1748641817263,0.84746857,2571.7,2571.6,0.00583748]
[1748641817467,0.84746857,2571.7,2571.6,5.18183748]
[1748641817971,0.84746857,2571.7,2571.6,5.95939748]
[1748641820269,0.84746857,2571.7,2571.6,5.18183748]
[1748641821366,0.84746857,2571.7,2571.6,5.95939748]
[1748641821872,0.84746857,2571.7,2571.6,5.18183748]
[1748641822066,0.84746857,2571.7,2571.6,5.95939748]
[1748641834384,1.04186857,2571.7,2571.6,5.95939748]
[1748641837693,1.04186857,2571.7,2571.6,5.18183748]
[1748641843498,1.94393,2571.6,2570.9,3.2078]
[1748641843798,0.7778,2570.8,2570.7,4.938]
[1748641844001,0.7778,2570.8,2570.7,5.71581]
[1748641845295,0.7778,2570.8,2570.7,4.938]
[1748641845592,0.77786,2570.6,2570.5,0.00583748]
[1748641845799,0.77805,2570.0,2569.9,3.2078]
[1748641845996,0.77805,2570.0,2569.9,0.77806]
[1748641846296,0.77805,2570.0,2569.9,5.71606]
[1748641846805,0.77805,2570.0,2569.9,4.938]
[1748641846998,0.77805,2570.0,2569.9,6.2412]
[1748641847205,0.77805,2570.0,2569.9,1.3032]
[1748641847398,0.77804,2570.1,2570.0,0.77804]
[1748641847593,3.9858,2570.2,2570.1,0.77802]
[1748641847799,3.2078,2570.2,2570.1,0.77802]
[1748641849003,0.78366748,2570.8,2570.7,0.77783]
[1748641849294,0.00583748,2570.8,2570.7,0.77783]
[1748641857007,0.78363748,2570.8,2570.7,0.77783]
[1748641859515,0.77786,2570.6,2570.5,5.71688]
[1748641864923,0.84779857,2570.6,2570.5,5.71688]
[1748641865423,1.04229857,2570.6,2570.5,5.71688]
[1748641866918,1.04229857,2570.6,2570.5,0.77788]
[1748641867119,0.77789,2570.5,2570.4,2.04849]
[1748641867318,0.77789,2570.5,2570.4,6.79649]
[1748641869424,0.26443857,2570.6,2570.4,6.79649]
[1748641869627,0.26443857,2570.6,2570.5,0.77789]
[1748641869923,0.26443857,2570.6,2570.5,2.01009]
[1748641874632,0.26443857,2570.6,2570.5,2.70639]
[1748641875838,0.26443857,2570.6,2570.5,5.91419]
[1748641878731,2.07676,2571.0,2570.7,0.77783]
[1748641879035,2.07674,2571.0,2570.9,0.77777]
[1748641879233,2.07674,2571.0,2570.9,5.52577]
[1748641881740,1.299,2571.0,2570.9,5.52577]
[1748641882238,2.07674,2571.0,2570.9,5.52577]
[1748641882834,0.00583748,2571.2,2570.9,5.52577]
[1748641883038,1.35413748,2571.2,2570.9,5.52577]
[1748641883337,2.13183748,2571.2,2571.1,0.77771]
[1748641884038,1.35413748,2571.2,2571.1,0.77771]
[1748641884236,2.13181748,2571.2,2571.1,0.77771]
[1748641886341,1.35413748,2571.2,2571.1,0.77771]
[1748641888741,0.00583748,2571.2,2571.1,0.77771]
[1748641895444,0.07577605,2571.2,2571.1,0.77771]
[1748641896036,0.6639,2571.6,2571.5,0.77759]
[1748641896344,0.6639,2571.6,2571.5,5.30459]
[1748641897033,0.00583748,2571.8,2571.7,0.77753]
[1748641897341,0.78335748,2571.8,2571.7,0.77753]
[1748641898240,0.77755,2571.7,2571.6,0.77754]
[1748641898441,2.04765,2571.7,2571.6,5.30454]
[1748641898643,1.2701,2571.7,2571.6,5.30454]
[1748641898942,2.04763,2571.7,2571.6,5.30454]
[1748641899238,0.77759,2571.6,2571.5,0.77756]
[1748641899439,2.10329,2571.6,2571.5,5.30456]
[1748641899642,2.10329,2571.6,2571.5,4.527]
[1748641900245,2.10329,2571.6,2571.5,5.30459]
[1748641900947,2.10329,2571.6,2571.5,4.527]
[1748641901947,0.77759,2571.5,2571.4,0.7776]
[1748641902244,2.02459,2571.5,2571.4,5.3046]
[1748641902641,0.77762,2571.4,2571.3,3.99126748]
[1748641902847,2.83282,2571.4,2571.3,8.51826748]
[1748641904145,2.83282,2571.4,2571.3,3.99126748]
[1748641904446,0.78335748,2571.8,2571.7,0.77753]
[1748641904646,2.03035748,2571.8,2571.7,0.77753]
[1748641907644,0.7776,2571.6,2571.5,0.77756]
[1748641920857,0.77756,2571.7,2571.6,0.77753]
[1748641924265,2.10028605,2571.8,2571.7,0.77753]
[1748641924563,1.32277605,2571.8,2571.7,5.15953]
[1748641924861,1.25283748,2571.8,2571.7,5.15953]
[1748641925062,2.03033748,2571.8,2571.7,5.15953]
[1748641925359,0.77759,2571.5,2571.4,3.2078]
[1748641925567,0.77762,2571.4,2571.3,0.00583748]
[1748641925958,5.77762,2571.4,2571.3,0.00583748]
[1748641926159,7.74462,2571.4,2571.3,0.00583748]
[1748641927267,8.97348299,2571.4,2571.3,0.00583748]
[1748641928359,3.97348299,2571.4,2571.3,0.78348748]
[1748641928574,2.74462,2571.4,2571.3,0.78348748]
[1748641928972,2.74462,2571.4,2571.3,0.00583748]
[1748641929769,2.74462,2571.4,2571.3,0.78348748]
[1748641930366,2.74462,2571.4,2571.3,0.00583748]
[1748641930764,2.74462,2571.4,2571.3,0.78348748]
[1748641932973,0.97202,2571.5,2571.4,0.77762]
[1748641933173,0.1944,2571.5,2571.4,0.77762]
[1748641933361,0.97199,2571.5,2571.4,0.77762]
[1748641937473,0.1944,2571.5,2571.4,0.77762]
[1748641938876,0.97199,2571.5,2571.4,0.77762]
[1748641940980,1.04192857,2571.5,2571.4,0.77762]
[1748641941181,0.26433857,2571.5,2571.4,0.77762]
[1748641941484,0.26433857,2571.5,2571.4,2.04872]
[1748641941874,0.00583748,2571.8,2571.7,0.77753]
[1748641942179,0.00583748,2571.8,2571.7,5.15953]
[1748641942774,0.77736,2572.3,2572.2,0.77738]
[1748641942974,0.77736,2572.3,2572.2,5.15938]
[1748641943175,2.04036,2572.3,2572.2,5.15938]
[1748641944486,2.04036,2572.3,2572.2,4.382]
[1748641945585,2.04036,2572.3,2572.2,5.15938]
[1748641945783,2.04036,2572.3,2572.2,4.382]
[1748641946886,2.04036,2572.3,2572.2,5.15938]
[1748641947582,1.263,2572.3,2572.2,5.15938]
[1748641947783,4.65284,2572.4,2572.3,0.77735]
[1748641948281,1.44504,2572.4,2572.3,0.77735]
[1748641948688,0.77734,2572.4,2572.3,0.77735]
[1748641948887,0.77728,2572.6,2572.5,0.77726]
[1748641950486,3.2078,2572.7,2572.6,0.77726]
[1748641950487,3.98506,2572.7,2572.6,0.77726]
[1748641950683,3.98506,2572.7,2572.6,5.15426]
[1748641951083,3.2078,2572.7,2572.6,5.15426]
[1748641953791,3.98503,2572.7,2572.6,5.15426]
[1748641954794,3.2078,2572.7,2572.6,5.15426]
[1748641955094,3.27773857,2572.7,2572.6,5.15426]
[1748641956891,0.06993857,2572.7,2572.6,5.15426]
[1748641958193,3.2078,2573.0,2572.9,0.77717]
[1748641959795,3.98494,2573.0,2572.9,0.77717]
[1748641959996,5.32994,2573.0,2572.9,0.77717]
[1748641961999,2.12214,2573.0,2572.9,0.77717]
[1748641965594,1.345,2573.0,2572.9,0.77717]
[1748641965798,2.12214,2573.0,2572.9,0.77717]
[1748641967695,1.345,2573.0,2572.9,0.77717]
[1748641968000,2.11252,2573.1,2573.0,0.77714]
[1748641968190,2.11252,2573.1,2573.0,5.15214]
[1748641969394,0.7771,2573.3,2573.2,0.77705]
[1748641969596,3.2078,2573.4,2573.3,0.77705]
[1748641969897,3.98482,2573.4,2573.3,5.15205]
[1748641970098,5.32592,2573.4,2573.3,5.15205]
[1748641970504,4.5489,2573.4,2573.3,5.15205]
[1748641970693,0.6655,2573.5,2573.4,0.77702]